[Event "*** SCC Grand Prix: Titled Tuesday Blitz"]
[Site "Chess.com"]
[Date "2020.07.14"]
[Round "4"]
[White "MateSchmate"]
[Black "Guenplen"]
[Result "0-1"]
[WhiteElo "2404"]
[BlackElo "2878"]
[TimeControl "180+1"]
[EndTime "10:38:42 PDT"]
[Termination "Guenplen won by checkmate"]

1. e4 {[%clk 0:03:00.9]} 1... c5 {[%clk 0:03:00.1]} 2. Nf3 {[%clk 0:03:00.2]}
2... e6 {[%clk 0:03:00]} 3. d4 {[%clk 0:03:00.3]} 3... cxd4 {[%clk 0:03:00.9]}
4. Nxd4 {[%clk 0:03:01.2]} 4... Nf6 {[%clk 0:03:01.4]} 5. Nc3 {[%clk 0:03:01.3]}
5... Nc6 {[%clk 0:03:01.8]} 6. g3 {[%clk 0:02:59.4]} 6... Bb4 {[%clk 0:03:00.5]}
7. Bg2 {[%clk 0:02:58.6]} 7... O-O {[%clk 0:03:00.1]} 8. O-O {[%clk 0:02:57]}
8... d6 {[%clk 0:02:56.4]} 9. Be3 {[%clk 0:02:55.5]} 9... Ne5 {[%clk 0:02:46.4]}
10. Qe2 {[%clk 0:02:48.6]} 10... a6 {[%clk 0:02:40.7]} 11. Rad1 {[%clk
0:02:44.1]} 11... Qc7 {[%clk 0:02:30.4]} 12. Nb3 {[%clk 0:02:33.3]} 12... Bxc3
{[%clk 0:02:26.1]} 13. bxc3 {[%clk 0:02:34.2]} 13... Bd7 {[%clk 0:02:26.2]} 14.
Rfe1 {[%clk 0:01:42.9]} 14... Bb5 {[%clk 0:02:21.8]} 15. Qd2 {[%clk 0:01:42.1]}
15... Nc4 {[%clk 0:02:13.6]} 16. Qc1 {[%clk 0:01:27.4]} 16... Nxe3 {[%clk
0:02:12.3]} 17. Qxe3 {[%clk 0:01:08.3]} 17... e5 {[%clk 0:02:11.9]} 18. Rd2
{[%clk 0:00:58.1]} 18... Rac8 {[%clk 0:02:09.1]} 19. Rc1 {[%clk 0:00:32]} 19...
Rfd8 {[%clk 0:02:04.5]} 20. f4 {[%clk 0:00:24.5]} 20... h5 {[%clk 0:01:45.1]}
21. h3 {[%clk 0:00:23.2]} 21... h4 {[%clk 0:01:27.2]} 22. fxe5 {[%clk 0:00:18]}
22... dxe5 {[%clk 0:01:28.1]} 23. Rcd1 {[%clk 0:00:12.9]} 23... Rxd2 {[%clk
0:01:25.5]} 24. Rxd2 {[%clk 0:00:13.8]} 24... hxg3 {[%clk 0:01:16.6]} 25. Qxg3
{[%clk 0:00:13.1]} 25... Nh5 {[%clk 0:01:07.5]} 26. Qg4 {[%clk 0:00:07.3]} 26...
Nf4 {[%clk 0:01:07.1]} 27. Bf1 {[%clk 0:00:07.7]} 27... Qxc3 {[%clk 0:00:54.1]}
28. Bxb5 {[%clk 0:00:05.8]} 28... axb5 {[%clk 0:00:55]} 29. Rf2 {[%clk
0:00:05.6]} 29... Nxh3+ {[%clk 0:00:53.5]} 30. Kg2 {[%clk 0:00:01.5]} 30... Nxf2
{[%clk 0:00:52.3]} 31. Kxf2 {[%clk 0:00:02.4]} 31... Qxc2+ {[%clk 0:00:51.7]}
32. Kg3 {[%clk 0:00:03.3]} 32... Rc3+ {[%clk 0:00:50.2]} 33. Kh4 {[%clk
0:00:04.2]} 33... Qh2+ {[%clk 0:00:50]} 34. Kg5 {[%clk 0:00:04.8]} 34... Qh6+
{[%clk 0:00:49.9]} 35. Kf5 {[%clk 0:00:04.6]} 35... Qf6# {[%clk 0:00:50.4]} 0-1

[Event "*** SCC Grand Prix: Titled Tuesday Blitz"]
[Site "Chess.com"]
[Date "2020.07.14"]
[Round "4"]
[White "vanImpe"]
[Black "Raja3401"]
[Result "0-1"]
[WhiteElo "2511"]
[BlackElo "2773"]
[TimeControl "180+1"]
[EndTime "10:38:43 PDT"]
[Termination "Raja3401 won by checkmate"]

1. g3 {[%clk 0:03:00.9]} 1... e5 {[%clk 0:02:59.9]} 2. c4 {[%clk 0:03:00]} 2...
Nf6 {[%clk 0:02:59.2]} 3. Bg2 {[%clk 0:03:00]} 3... c6 {[%clk 0:02:57.2]} 4. d4
{[%clk 0:02:59.7]} 4... exd4 {[%clk 0:02:57.2]} 5. Qxd4 {[%clk 0:02:58.3]} 5...
d5 {[%clk 0:02:57.6]} 6. Nf3 {[%clk 0:02:58.4]} 6... Nbd7 {[%clk 0:02:54]} 7.
cxd5 {[%clk 0:02:56.2]} 7... Bc5 {[%clk 0:02:53.1]} 8. Qd2 {[%clk 0:02:51.1]}
8... Ne4 {[%clk 0:02:23.6]} 9. Qc2 {[%clk 0:02:42.7]} 9... Bxf2+ {[%clk
0:02:15.1]} 10. Kf1 {[%clk 0:02:41.5]} 10... Ndf6 {[%clk 0:02:15]} 11. Ng5
{[%clk 0:02:31.5]} 11... Nxg5 {[%clk 0:02:08.3]} 12. Bxg5 {[%clk 0:02:31.3]}
12... Bb6 {[%clk 0:01:47.2]} 13. dxc6 {[%clk 0:02:27]} 13... Bf5 {[%clk
0:01:38.3]} 14. cxb7 {[%clk 0:02:11.2]} 14... Rb8 {[%clk 0:01:23.9]} 15. e4
{[%clk 0:02:02.5]} 15... Bd7 {[%clk 0:00:58.9]} 16. Nc3 {[%clk 0:01:57.7]} 16...
O-O {[%clk 0:00:49.5]} 17. e5 {[%clk 0:01:54.4]} 17... h6 {[%clk 0:00:37.1]} 18.
Bxf6 {[%clk 0:01:32.9]} 18... gxf6 {[%clk 0:00:37.2]} 19. Rd1 {[%clk 0:01:22.1]}
19... fxe5 {[%clk 0:00:34.3]} 20. Nd5 {[%clk 0:00:57.6]} 20... Bb5+ {[%clk
0:00:31.1]} 21. Ke1 {[%clk 0:00:55]} 21... Rxb7 {[%clk 0:00:29]} 22. a4 {[%clk
0:00:47.1]} 22... Ba6 {[%clk 0:00:20.1]} 23. b4 {[%clk 0:00:46.1]} 23... Bd4
{[%clk 0:00:17.2]} 24. b5 {[%clk 0:00:43]} 24... Qa5+ {[%clk 0:00:17.5]} 25. Qd2
{[%clk 0:00:41.9]} 25... Qxa4 {[%clk 0:00:15.8]} 26. bxa6 {[%clk 0:00:39.6]}
26... Rb2 {[%clk 0:00:16.1]} 27. Qxh6 {[%clk 0:00:30.9]} 27... Bf2+ {[%clk
0:00:15.6]} 28. Kf1 {[%clk 0:00:29.5]} 28... Qxd1# {[%clk 0:00:14.5]} 0-1

[Event "*** SCC Grand Prix: Titled Tuesday Blitz"]
[Site "Chess.com"]
[Date "2020.07.14"]
[Round "4"]
[White "Irishchessman16"]
[Black "DonBroca"]
[Result "1-0"]
[WhiteElo "2389"]
[BlackElo "2132"]
[TimeControl "180+1"]
[EndTime "10:38:43 PDT"]
[Termination "Irishchessman16 won on time"]

1. e4 {[%clk 0:03:00.9]} 1... c5 {[%clk 0:02:57]} 2. Nf3 {[%clk 0:03:00.8]} 2...
d6 {[%clk 0:02:56.8]} 3. d4 {[%clk 0:03:00.9]} 3... cxd4 {[%clk 0:02:57.7]} 4.
Nxd4 {[%clk 0:03:01.6]} 4... Nf6 {[%clk 0:02:57.9]} 5. Nc3 {[%clk 0:03:02.3]}
5... g6 {[%clk 0:02:58]} 6. Be3 {[%clk 0:02:57.2]} 6... Bg7 {[%clk 0:02:58.1]}
7. Be2 {[%clk 0:02:49.6]} 7... O-O {[%clk 0:02:57.2]} 8. O-O {[%clk 0:02:48.6]}
8... Nc6 {[%clk 0:02:57.6]} 9. Nb3 {[%clk 0:02:33.9]} 9... Bd7 {[%clk
0:02:52.8]} 10. Kh1 {[%clk 0:02:31]} 10... Rc8 {[%clk 0:02:48.4]} 11. f4 {[%clk
0:02:29.5]} 11... Be6 {[%clk 0:02:34.5]} 12. Bf3 {[%clk 0:01:52.6]} 12... a6
{[%clk 0:02:02.9]} 13. Rf2 {[%clk 0:01:41.6]} 13... Nb4 {[%clk 0:02:01.4]} 14.
Rd2 {[%clk 0:01:29.8]} 14... Nd7 {[%clk 0:01:45.8]} 15. Bd4 {[%clk 0:01:15.8]}
15... f6 {[%clk 0:01:06.6]} 16. a3 {[%clk 0:01:01.4]} 16... Nc6 {[%clk
0:01:04.6]} 17. Be3 {[%clk 0:01:00.4]} 17... Bf7 {[%clk 0:00:42.4]} 18. Qg1
{[%clk 0:00:50.5]} 18... Qe8 {[%clk 0:00:38.2]} 19. Rad1 {[%clk 0:00:47]} 19...
Nd8 {[%clk 0:00:16.1]} 20. Na5 {[%clk 0:00:29.5]} 20... b6 {[%clk 0:00:09.8]}
21. Nb3 {[%clk 0:00:29.2]} 21... Nc5 {[%clk 0:00:07.8]} 22. Nd4 {[%clk
0:00:27.8]} 22... Nc6 {[%clk 0:00:05.5]} 23. Nxc6 {[%clk 0:00:27.3]} 23... Rxc6
{[%clk 0:00:04.6]} 24. e5 {[%clk 0:00:27.6]} 1-0

[Event "*** SCC Grand Prix: Titled Tuesday Blitz"]
[Site "Chess.com"]
[Date "2020.07.14"]
[Round "4"]
[White "Mfcyryd"]
[Black "vladislavkovalev"]
[Result "1-0"]
[WhiteElo "2552"]
[BlackElo "2896"]
[TimeControl "180+1"]
[EndTime "10:38:44 PDT"]
[Termination "Mfcyryd won by checkmate"]

1. e4 {[%clk 0:03:00.9]} 1... e5 {[%clk 0:03:00.1]} 2. Nf3 {[%clk 0:03:01]} 2...
Nc6 {[%clk 0:03:00.5]} 3. d4 {[%clk 0:03:01.2]} 3... exd4 {[%clk 0:03:00.6]} 4.
Nxd4 {[%clk 0:03:02.1]} 4... Nf6 {[%clk 0:03:01.1]} 5. Nc3 {[%clk 0:03:01]} 5...
Bc5 {[%clk 0:02:58.4]} 6. Nxc6 {[%clk 0:03:00]} 6... bxc6 {[%clk 0:02:59.3]} 7.
Bd3 {[%clk 0:02:58.8]} 7... O-O {[%clk 0:02:59.7]} 8. O-O {[%clk 0:02:58.8]}
8... Re8 {[%clk 0:03:00.3]} 9. h3 {[%clk 0:02:35.9]} 9... d6 {[%clk 0:03:00.2]}
10. Kh1 {[%clk 0:02:35.1]} 10... Bd4 {[%clk 0:02:44.2]} 11. Ne2 {[%clk
0:02:32.1]} 11... Bb6 {[%clk 0:02:44.6]} 12. Ng3 {[%clk 0:02:30.2]} 12... d5
{[%clk 0:02:41]} 13. Qf3 {[%clk 0:02:27.3]} 13... h6 {[%clk 0:02:35.5]} 14. Bd2
{[%clk 0:02:13.6]} 14... Be6 {[%clk 0:02:31]} 15. Rae1 {[%clk 0:02:10.1]} 15...
Nh7 {[%clk 0:02:25]} 16. Nf5 {[%clk 0:02:07.6]} 16... Ng5 {[%clk 0:02:22.1]} 17.
Qg4 {[%clk 0:02:05.3]} 17... Bxf5 {[%clk 0:01:53.3]} 18. exf5 {[%clk 0:02:02.9]}
18... Rxe1 {[%clk 0:01:52.6]} 19. Rxe1 {[%clk 0:02:02.2]} 19... Bxf2 {[%clk
0:01:27]} 20. Rf1 {[%clk 0:02:01]} 20... Bc5 {[%clk 0:01:23.4]} 21. f6 {[%clk
0:02:01.6]} 21... Qc8 {[%clk 0:00:43.1]} 22. Rf5 {[%clk 0:01:39.1]} 22... g6
{[%clk 0:00:27.4]} 23. Bxg5 {[%clk 0:01:35.6]} 23... hxg5 {[%clk 0:00:26.2]} 24.
Qxg5 {[%clk 0:01:33.4]} 24... Qe6 {[%clk 0:00:22.4]} 25. Re5 {[%clk 0:01:30]}
25... Qd6 {[%clk 0:00:08.8]} 26. h4 {[%clk 0:01:13.4]} 26... Bd4 {[%clk
0:00:08]} 27. Bxg6 {[%clk 0:00:55.7]} 27... Bxe5 {[%clk 0:00:06.8]} 28. Bh7+
{[%clk 0:00:52.4]} 28... Kf8 {[%clk 0:00:04.2]} 29. Qg8# {[%clk 0:00:47.9]} 1-0

[Event "*** SCC Grand Prix: Titled Tuesday Blitz"]
[Site "Chess.com"]
[Date "2020.07.14"]
[Round "4"]
[White "platy3"]
[Black "WildTricks"]
[Result "1-0"]
[WhiteElo "2765"]
[BlackElo "2508"]
[TimeControl "180+1"]
[EndTime "10:38:46 PDT"]
[Termination "platy3 won by checkmate"]

1. e4 {[%clk 0:02:59.5]} 1... c5 {[%clk 0:02:59.1]} 2. Nf3 {[%clk 0:02:59.2]}
2... d6 {[%clk 0:02:59.2]} 3. c3 {[%clk 0:02:59.3]} 3... Nf6 {[%clk 0:02:58.9]}
4. h3 {[%clk 0:03:00.2]} 4... Nc6 {[%clk 0:02:56.6]} 5. Bd3 {[%clk 0:02:54.9]}
5... d5 {[%clk 0:02:56.3]} 6. e5 {[%clk 0:02:52.6]} 6... Nd7 {[%clk 0:02:56.4]}
7. Bb5 {[%clk 0:02:53.2]} 7... Qb6 {[%clk 0:02:55.6]} 8. Bxc6 {[%clk 0:02:29]}
8... Qxc6 {[%clk 0:02:55.2]} 9. d3 {[%clk 0:02:24.1]} 9... e6 {[%clk 0:02:53.9]}
10. O-O {[%clk 0:02:20.4]} 10... h6 {[%clk 0:02:50.1]} 11. Re1 {[%clk
0:02:20.4]} 11... Be7 {[%clk 0:02:49.1]} 12. Nbd2 {[%clk 0:02:20.3]} 12... b6
{[%clk 0:02:45.5]} 13. Nf1 {[%clk 0:02:20.3]} 13... Bb7 {[%clk 0:02:44.4]} 14.
Ng3 {[%clk 0:02:20.7]} 14... Nf8 {[%clk 0:02:24.3]} 15. Nh5 {[%clk 0:02:08.6]}
15... Rg8 {[%clk 0:02:20.6]} 16. d4 {[%clk 0:02:04.4]} 16... O-O-O {[%clk
0:02:11.3]} 17. a4 {[%clk 0:01:43.4]} 17... Nh7 {[%clk 0:02:02.4]} 18. a5 {[%clk
0:01:38.8]} 18... b5 {[%clk 0:02:01.2]} 19. dxc5 {[%clk 0:01:34.3]} 19... Bxc5
{[%clk 0:01:56.8]} 20. b4 {[%clk 0:01:25.9]} 20... Be7 {[%clk 0:01:45.1]} 21.
Nd4 {[%clk 0:01:22.1]} 21... Qa6 {[%clk 0:01:34.8]} 22. Qd3 {[%clk 0:01:15.5]}
22... g6 {[%clk 0:01:31.6]} 23. Ng3 {[%clk 0:01:14.9]} 23... Bc6 {[%clk
0:01:31.4]} 24. Be3 {[%clk 0:01:11.6]} 24... Kb7 {[%clk 0:01:25.5]} 25. Nge2
{[%clk 0:01:09.7]} 25... Bg5 {[%clk 0:01:19.5]} 26. Nb3 {[%clk 0:01:08.7]} 26...
Be7 {[%clk 0:01:16.8]} 27. Bc5 {[%clk 0:01:04.2]} 27... Bg5 {[%clk 0:01:02.9]}
28. f4 {[%clk 0:01:02.1]} 28... Bh4 {[%clk 0:01:01.5]} 29. g3 {[%clk 0:00:59.6]}
29... g5 {[%clk 0:00:42.4]} 30. gxh4 {[%clk 0:00:53.3]} 30... gxf4+ {[%clk
0:00:41.3]} 31. Kh2 {[%clk 0:00:53.3]} 31... d4 {[%clk 0:00:39.1]} 32. Nxf4
{[%clk 0:00:50.3]} 32... dxc3 {[%clk 0:00:32.2]} 33. Qxh7 {[%clk 0:00:49.9]}
33... Ka8 {[%clk 0:00:26]} 34. Rg1 {[%clk 0:00:44.8]} 34... Qc8 {[%clk
0:00:16.1]} 35. Qxf7 {[%clk 0:00:43.1]} 35... Rgf8 {[%clk 0:00:14.7]} 36. Qxa7#
{[%clk 0:00:42.9]} 1-0

[Event "*** SCC Grand Prix: Titled Tuesday Blitz"]
[Site "Chess.com"]
[Date "2020.07.14"]
[Round "4"]
[White "NefeLV"]
[Black "winniethepooh04"]
[Result "0-1"]
[WhiteElo "1825"]
[BlackElo "2179"]
[TimeControl "180+1"]
[EndTime "10:38:47 PDT"]
[Termination "winniethepooh04 won by resignation"]

1. c4 {[%clk 0:03:00.9]} 1... Nf6 {[%clk 0:02:58.9]} 2. d4 {[%clk 0:03:01.2]}
2... g6 {[%clk 0:02:57.6]} 3. Nc3 {[%clk 0:03:00.5]} 3... Bg7 {[%clk 0:02:58]}
4. e4 {[%clk 0:03:00.6]} 4... d6 {[%clk 0:02:58.4]} 5. Be3 {[%clk 0:03:01]} 5...
O-O {[%clk 0:02:58.4]} 6. Qd2 {[%clk 0:03:00]} 6... Nbd7 {[%clk 0:02:58.8]} 7.
f3 {[%clk 0:02:59.5]} 7... c5 {[%clk 0:02:57.8]} 8. d5 {[%clk 0:02:58.8]} 8...
a6 {[%clk 0:02:56.4]} 9. Bh6 {[%clk 0:02:58.3]} 9... Rb8 {[%clk 0:02:54.1]} 10.
h4 {[%clk 0:02:56.1]} 10... Ne5 {[%clk 0:02:46]} 11. g4 {[%clk 0:02:49.1]} 11...
e6 {[%clk 0:02:34.4]} 12. h5 {[%clk 0:02:46.9]} 12... exd5 {[%clk 0:02:31]} 13.
hxg6 {[%clk 0:02:45.9]} 13... fxg6 {[%clk 0:02:13.5]} 14. Bxg7 {[%clk
0:02:45.2]} 14... Kxg7 {[%clk 0:02:03.1]} 15. Qh6+ {[%clk 0:02:46.1]} 15... Kg8
{[%clk 0:01:56.9]} 16. g5 {[%clk 0:02:45.7]} 16... Nh5 {[%clk 0:01:56.3]} 17.
Nxd5 {[%clk 0:02:33.3]} 17... Nf7 {[%clk 0:01:43.9]} 18. Nf6+ {[%clk 0:02:24.6]}
18... Qxf6 {[%clk 0:01:43.2]} 19. Qxh5 {[%clk 0:02:12.3]} 19... Nxg5 {[%clk
0:01:33.1]} 20. Qh4 {[%clk 0:02:03.9]} 20... Qxb2 {[%clk 0:01:21.3]} 21. Qxg5
{[%clk 0:01:49.7]} 21... Qxa1+ {[%clk 0:01:19.3]} 22. Kf2 {[%clk 0:01:49.2]}
22... Qd4+ {[%clk 0:01:14.7]} 23. Kg2 {[%clk 0:01:45.7]} 23... Be6 {[%clk
0:01:09]} 24. Ne2 {[%clk 0:01:41.9]} 24... Qf6 {[%clk 0:01:01]} 25. Qg3 {[%clk
0:01:36.3]} 25... Bxc4 {[%clk 0:00:59.3]} 26. Qh3 {[%clk 0:01:25.9]} 26... Rf7
{[%clk 0:00:52.9]} 27. a3 {[%clk 0:01:17.2]} 27... Rbf8 {[%clk 0:00:51.2]} 28.
f4 {[%clk 0:01:14.7]} 28... Bxe2 {[%clk 0:00:44.9]} 29. Bxe2 {[%clk 0:01:14.4]}
29... Qxf4 {[%clk 0:00:45.2]} 30. Rf1 {[%clk 0:01:13.4]} 30... Qg5+ {[%clk
0:00:35.6]} 31. Kh2 {[%clk 0:01:10.7]} 31... Rxf1 {[%clk 0:00:33.4]} 32. Bxf1
{[%clk 0:01:10.2]} 32... Rf2+ {[%clk 0:00:31.7]} 33. Kh1 {[%clk 0:01:07.9]}
33... Qf4 {[%clk 0:00:31.4]} 34. Bc4+ {[%clk 0:01:05.8]} 34... Kg7 {[%clk
0:00:27.9]} 35. Qd7+ {[%clk 0:01:05.2]} 35... Kh6 {[%clk 0:00:27.3]} 36. Qh3+
{[%clk 0:01:04.5]} 36... Kg5 {[%clk 0:00:26.8]} 37. a4 {[%clk 0:00:55.7]} 37...
Qc1+ {[%clk 0:00:22.8]} 38. Bf1 {[%clk 0:00:53.3]} 38... Rxf1+ {[%clk 0:00:23]}
0-1

[Event "*** SCC Grand Prix: Titled Tuesday Blitz"]
[Site "Chess.com"]
[Date "2020.07.14"]
[Round "4"]
[White "secretsuperstar7"]
[Black "mamey78"]
[Result "0-1"]
[WhiteElo "2113"]
[BlackElo "2413"]
[TimeControl "180+1"]
[EndTime "10:38:49 PDT"]
[Termination "mamey78 won by resignation"]

1. d4 {[%clk 0:02:58.6]} 1... d5 {[%clk 0:02:59.1]} 2. c4 {[%clk 0:02:57.6]}
2... c6 {[%clk 0:02:59]} 3. cxd5 {[%clk 0:02:57.3]} 3... cxd5 {[%clk 0:02:58.4]}
4. Bf4 {[%clk 0:02:57.9]} 4... Nc6 {[%clk 0:02:58.4]} 5. e3 {[%clk 0:02:55.9]}
5... Nf6 {[%clk 0:02:58]} 6. Nc3 {[%clk 0:02:55.6]} 6... a6 {[%clk 0:02:57.9]}
7. Nf3 {[%clk 0:02:54.5]} 7... Bg4 {[%clk 0:02:56.7]} 8. Bd3 {[%clk 0:02:51.9]}
8... Bxf3 {[%clk 0:02:56.7]} 9. Qxf3 {[%clk 0:02:51]} 9... e6 {[%clk 0:02:57.6]}
10. O-O {[%clk 0:02:47.5]} 10... Bd6 {[%clk 0:02:57]} 11. Bg5 {[%clk 0:02:38]}
11... Be7 {[%clk 0:02:56.2]} 12. a3 {[%clk 0:02:26.9]} 12... O-O {[%clk
0:02:55.8]} 13. Rfe1 {[%clk 0:02:24.9]} 13... Rc8 {[%clk 0:02:55]} 14. Rac1
{[%clk 0:02:15.5]} 14... b5 {[%clk 0:02:52.9]} 15. b4 {[%clk 0:02:15]} 15... Nd7
{[%clk 0:02:41.3]} 16. Bxe7 {[%clk 0:01:45.5]} 16... Qxe7 {[%clk 0:02:25]} 17.
Ne2 {[%clk 0:00:48.8]} 17... Rc7 {[%clk 0:02:11.7]} 18. Rc2 {[%clk 0:00:43.2]}
18... Rfc8 {[%clk 0:02:07.3]} 19. Rec1 {[%clk 0:00:39.1]} 19... Nb6 {[%clk
0:01:54.3]} 20. e4 {[%clk 0:00:31.2]} 20... g6 {[%clk 0:01:40.6]} 21. h3 {[%clk
0:00:12.2]} 21... Qg5 {[%clk 0:01:39.3]} 22. a4 {[%clk 0:00:08.9]} 22... Nxa4
{[%clk 0:01:28.1]} 23. exd5 {[%clk 0:00:07.1]} 23... exd5 {[%clk 0:01:29]} 24.
h4 {[%clk 0:00:07]} 24... Qxh4 {[%clk 0:01:11.1]} 25. Qxd5 {[%clk 0:00:06.2]}
25... Nxb4 {[%clk 0:01:09.4]} 26. Qb3 {[%clk 0:00:03.6]} 26... Nxc2 {[%clk
0:01:08.2]} 27. Rxc2 {[%clk 0:00:03.4]} 27... Rxc2 {[%clk 0:01:01.4]} 28. Bxc2
{[%clk 0:00:04.3]} 28... Qe7 {[%clk 0:01:00]} 29. Nf4 {[%clk 0:00:03.3]} 29...
Qe1+ {[%clk 0:00:57.5]} 30. Kh2 {[%clk 0:00:03.4]} 30... Qd2 {[%clk 0:00:57.6]}
31. Qe3 {[%clk 0:00:01.3]} 31... Qxe3 {[%clk 0:00:56.7]} 32. fxe3 {[%clk
0:00:02.2]} 32... Rxc2 {[%clk 0:00:56.4]} 33. d5 {[%clk 0:00:01.4]} 33... Rd2
{[%clk 0:00:53.3]} 34. e4 {[%clk 0:00:01.4]} 34... b4 {[%clk 0:00:53]} 35. Kg3
{[%clk 0:00:01.9]} 35... b3 {[%clk 0:00:52.6]} 36. e5 {[%clk 0:00:02.4]} 36...
b2 {[%clk 0:00:51.9]} 37. d6 {[%clk 0:00:02.5]} 37... b1=Q {[%clk 0:00:51.1]}
0-1

[Event "*** SCC Grand Prix: Titled Tuesday Blitz"]
[Site "Chess.com"]
[Date "2020.07.14"]
[Round "4"]
[White "AldokhinIvan"]
[Black "Khazieva_Elza"]
[Result "1-0"]
[WhiteElo "2573"]
[BlackElo "2329"]
[TimeControl "180+1"]
[EndTime "10:38:51 PDT"]
[Termination "AldokhinIvan won by checkmate"]

1. e4 {[%clk 0:03:00.9]} 1... c5 {[%clk 0:02:59.5]} 2. Nf3 {[%clk 0:03:01.3]}
2... d6 {[%clk 0:02:59.8]} 3. d4 {[%clk 0:03:01.9]} 3... cxd4 {[%clk 0:03:00.7]}
4. Nxd4 {[%clk 0:03:02.8]} 4... Nf6 {[%clk 0:03:01.1]} 5. Nc3 {[%clk 0:03:03.4]}
5... Nc6 {[%clk 0:03:01.8]} 6. Nde2 {[%clk 0:03:02.2]} 6... g6 {[%clk
0:03:01.1]} 7. h3 {[%clk 0:02:55.1]} 7... h5 {[%clk 0:02:50.8]} 8. g3 {[%clk
0:02:55.1]} 8... Bg7 {[%clk 0:02:50.8]} 9. Bg2 {[%clk 0:02:55.2]} 9... a6 {[%clk
0:02:39.9]} 10. Bg5 {[%clk 0:02:54.3]} 10... Ne5 {[%clk 0:02:07.3]} 11. O-O
{[%clk 0:02:48.1]} 11... O-O {[%clk 0:02:02.7]} 12. b3 {[%clk 0:02:42.1]} 12...
Bd7 {[%clk 0:01:52.5]} 13. f4 {[%clk 0:02:37.9]} 13... Nc6 {[%clk 0:01:52.2]}
14. Qd2 {[%clk 0:02:16.6]} 14... Rc8 {[%clk 0:01:27.7]} 15. Rad1 {[%clk
0:02:15.7]} 15... Qb6+ {[%clk 0:01:25.4]} 16. Kh2 {[%clk 0:02:14]} 16... Nh7
{[%clk 0:01:08.8]} 17. Nd5 {[%clk 0:02:10.2]} 17... Qd8 {[%clk 0:01:05.1]} 18.
Bh4 {[%clk 0:02:08.7]} 18... Be6 {[%clk 0:00:48.7]} 19. c4 {[%clk 0:02:01.3]}
19... f6 {[%clk 0:00:44.3]} 20. f5 {[%clk 0:01:58.6]} 20... gxf5 {[%clk
0:00:32.9]} 21. exf5 {[%clk 0:01:54.2]} 21... Bf7 {[%clk 0:00:33]} 22. Nef4
{[%clk 0:01:51.8]} 22... Ne5 {[%clk 0:00:31.5]} 23. Qe2 {[%clk 0:01:45.3]} 23...
b5 {[%clk 0:00:23.8]} 24. cxb5 {[%clk 0:01:37.3]} 24... axb5 {[%clk 0:00:24.7]}
25. Ne6 {[%clk 0:01:22.3]} 25... Bxe6 {[%clk 0:00:23.3]} 26. fxe6 {[%clk
0:01:23.2]} 26... Qe8 {[%clk 0:00:17.9]} 27. Be4 {[%clk 0:01:22.2]} 27... Ng5
{[%clk 0:00:15.3]} 28. Bxg5 {[%clk 0:01:20.5]} 28... fxg5 {[%clk 0:00:16.2]} 29.
Rxf8+ {[%clk 0:01:20.7]} 29... Bxf8 {[%clk 0:00:13.8]} 30. Bb1 {[%clk
0:01:15.6]} 30... Kg7 {[%clk 0:00:10.4]} 31. Rf1 {[%clk 0:01:13.7]} 31... Rc5
{[%clk 0:00:03.8]} 32. Ne3 {[%clk 0:00:52]} 32... Qc8 {[%clk 0:00:02.6]} 33.
Qxh5 {[%clk 0:00:48.8]} 33... Qxe6 {[%clk 0:00:02.4]} 34. Qh7# {[%clk
0:00:48.5]} 1-0

[Event "*** SCC Grand Prix: Titled Tuesday Blitz"]
[Site "Chess.com"]
[Date "2020.07.14"]
[Round "4"]
[White "politeplayer"]
[Black "CrushingKings"]
[Result "0-1"]
[WhiteElo "2213"]
[BlackElo "2559"]
[TimeControl "180+1"]
[EndTime "10:38:54 PDT"]
[Termination "CrushingKings won on time"]

1. e4 {[%clk 0:03:00.9]} 1... c5 {[%clk 0:02:58.9]} 2. d4 {[%clk 0:03:01.3]}
2... cxd4 {[%clk 0:02:57]} 3. c3 {[%clk 0:03:01.7]} 3... Nf6 {[%clk 0:02:35.2]}
4. e5 {[%clk 0:03:01]} 4... Nd5 {[%clk 0:02:35.8]} 5. Nf3 {[%clk 0:03:00.8]}
5... Nc6 {[%clk 0:02:35.5]} 6. Bc4 {[%clk 0:03:00.1]} 6... Nb6 {[%clk
0:02:33.5]} 7. Bb3 {[%clk 0:03:00]} 7... g6 {[%clk 0:02:33.3]} 8. h4 {[%clk
0:02:16.5]} 8... Bg7 {[%clk 0:01:41]} 9. h5 {[%clk 0:02:10.5]} 9... Nxe5 {[%clk
0:01:40.2]} 10. Nxe5 {[%clk 0:01:30.2]} 10... Bxe5 {[%clk 0:01:41.1]} 11. hxg6
{[%clk 0:01:25.6]} 11... hxg6 {[%clk 0:01:38.6]} 12. Rxh8+ {[%clk 0:01:19.8]}
12... Bxh8 {[%clk 0:01:39.5]} 13. Qf3 {[%clk 0:01:11.2]} 13... d5 {[%clk
0:01:39]} 14. cxd4 {[%clk 0:01:05.9]} 14... Bxd4 {[%clk 0:01:29.2]} 15. Nc3
{[%clk 0:00:51.8]} 15... Be6 {[%clk 0:01:11.7]} 16. Nb5 {[%clk 0:00:41.6]} 16...
Be5 {[%clk 0:00:55.4]} 17. Qe3 {[%clk 0:00:32.7]} 17... Bf6 {[%clk 0:00:33.6]}
18. Bd2 {[%clk 0:00:20.4]} 18... Nc4 {[%clk 0:00:17.9]} 19. Bxc4 {[%clk
0:00:17.2]} 19... dxc4 {[%clk 0:00:18.8]} 20. Rd1 {[%clk 0:00:14.1]} 20... Kf8
{[%clk 0:00:16]} 21. Bb4 {[%clk 0:00:09.7]} 21... Qb6 {[%clk 0:00:13.5]} 0-1